bitfinex/quotes_ETHUSD_20260308
["timestamp","ask_amount","ask_price","bid_price","bid_amount"]
[1773001010013,0.4724672,1954.6,1954.2,0.001]
[1773001010523,1.27909951,1954.5,1954.1,0.48421847]
[1773001010702,0.4724672,1954.6,1954.1,0.48421847]
[1773001010880,1.287,1954.6,1954.1,0.48421847]
[1773001011205,1.287,1954.6,1954.3,0.001]
[1773001012609,1.75156671,1954.5,1954.3,0.001]
[1773001012784,0.4724672,1954.5,1954.3,0.001]
[1773001014119,1.27903587,1954.6,1954.3,0.001]
[1773001015815,0.002,1954.8,1954.3,0.48521847]
[1773001016022,0.002,1954.9,1954.4,0.48421847]
[1773001016187,0.004,1954.9,1954.4,0.48421847]
[1773001018006,0.004,1954.9,1954.6,0.48421847]
[1773001018007,0.002,1954.9,1954.6,0.48421847]
[1773001018207,0.00153886,1955.0,1954.6,0.48421847]
[1773001018413,0.00353886,1955.0,1954.6,0.48421847]
[1773001019622,0.002,1955.6,1954.7,0.48421847]
[1773001019849,0.4724672,1955.4,1954.7,0.48421847]
[1773001020051,0.4724672,1955.4,1954.9,0.48421847]
[1773001020203,1.75098268,1955.4,1954.9,0.48421847]
[1773001020937,0.002,1955.3,1954.8,1.27890321]
[1773001021131,0.002,1955.3,1954.9,0.48421847]
[1773001021954,0.002,1955.6,1954.9,0.48421847]
[1773001022245,0.4744672,1955.6,1955.0,1.76299084]
[1773001023416,0.002,1955.4,1955.1,0.48643855]
[1773001024224,0.002,1955.4,1955.2,1.27864157]
[1773001024652,0.002,1955.4,1955.2,1.76508012]
[1773001025538,0.002,1955.4,1955.3,0.45698302]
[1773001025735,0.002,1955.6,1955.3,0.45698302]
[1773001026328,0.002,1955.6,1955.4,1.27851079]
[1773001026740,0.002,1955.6,1955.5,0.45698302]
[1773001026953,0.002,1955.9,1955.5,0.45698302]
[1773001028869,0.002,1955.9,1955.7,0.45698302]
[1773001030637,0.002,1955.9,1955.5,1.73539981]
[1773001030837,0.002,1955.9,1955.6,0.45698302]
[1773001031259,0.002,1955.9,1955.7,1.73529768]
[1773001031836,0.002,1955.9,1955.7,0.45698302]
[1773001033369,0.002,1955.9,1955.7,1.73525706]
[1773001033671,0.002,1955.9,1955.7,0.45698302]
[1773001033971,0.002,1955.9,1955.5,1.73542207]
[1773001034861,0.002,1955.9,1955.6,0.45698302]
[1773001035369,0.002,1955.9,1955.6,1.73530815]
[1773001035573,0.002,1955.8,1955.6,1.73530815]
[1773001037867,0.48576186,1955.8,1955.3,1.27857417]
[1773001038164,0.48576186,1955.8,1955.3,1.73555806]
[1773001038573,0.48576186,1955.8,1955.3,0.45698302]
[1773001038937,0.48576186,1955.8,1955.3,1.73555376]
[1773001039337,0.48576186,1955.8,1955.3,0.45698302]
[1773001039539,0.48576186,1955.8,1955.2,0.001]
[1773001039878,0.48576186,1955.8,1955.2,0.46601668]
[1773001039879,1.27831466,1955.7,1955.2,0.46601668]
[1773001040977,0.48376186,1955.6,1955.2,0.001]
[1773001041752,1.27831466,1955.7,1955.2,0.46601668]
[1773001041946,1.27831466,1955.7,1955.3,1.74359285]
[1773001042164,1.28029952,1955.8,1955.4,0.46501668]
[1773001042376,0.002,1955.8,1955.4,0.46501668]
[1773001043951,0.002,1955.8,1955.6,0.46501668]
[1773001045192,0.00153886,1956.0,1955.5,1.27844541]
[1773001045408,0.00153886,1956.0,1955.6,0.46501668]
[1773001046372,0.48737225,1956.0,1955.3,0.46501668]
[1773001046686,0.48737225,1956.0,1955.2,0.001]
[1773001046687,1.76360722,1956.6,1955.5,0.46501668]
[1773001047591,0.48583339,1956.6,1955.5,0.46501668]
[1773001047960,1.76356576,1956.6,1955.5,0.46501668]
[1773001048257,0.002,1955.9,1955.5,0.46501668]
[1773001048457,0.002,1955.9,1955.7,0.46501668]
[1773001048879,0.48583339,1956.6,1955.8,0.46501668]
[1773001049078,0.002,1956.2,1955.8,0.46501668]
[1773001050687,0.002,1956.2,1956.0,0.46501668]
[1773001051029,0.002,1956.8,1956.2,0.46501668]
[1773001051225,0.002,1956.9,1956.2,0.46501668]
[1773001052702,0.002,1956.9,1956.3,1.2779226]
[1773001052882,0.002,1956.9,1956.4,0.49440747]
[1773001053090,1e-08,1957.0,1956.5,0.49440747]
[1773001055484,1e-08,1957.0,1956.7,0.49440747]
[1773001055691,1e-08,1957.0,1956.6,1.27772666]
[1773001055886,1e-08,1957.0,1956.7,0.49440747]
[1773001057708,0.46851816,1957.2,1956.6,0.49440747]
[1773001057709,1e-08,1957.2,1956.6,0.49440747]
[1773001059845,1e-08,1957.2,1956.8,0.49440747]
[1773001061242,0.002,1956.9,1956.8,0.49440747]
[1773001061436,1e-08,1957.2,1956.8,0.49440747]
[1773001061808,0.002,1957.0,1956.9,1.30993366]
[1773001062017,0.002,1957.0,1956.7,1.27763439]
[1773001062321,0.46851816,1957.0,1956.6,0.001]
[1773001064012,0.46651816,1956.9,1956.6,0.001]
[1773001064630,0.002,1957.0,1956.6,0.001]
[1773001065539,1.279467,1957.0,1956.6,0.001]
[1773001066249,0.002,1957.0,1956.6,0.49540747]
[1773001066640,0.46851816,1957.0,1956.6,0.001]
[1773001070451,1.74604661,1957.0,1956.6,0.001]
[1773001070655,0.46651816,1956.9,1956.6,0.001]
[1773001072384,0.46651816,1956.7,1956.6,0.001]
[1773001073071,0.002,1957.0,1956.6,0.001]
[1773001073072,0.002,1957.0,1956.6,0.49540747]
[1773001073830,0.46651817,1957.2,1956.7,0.49440747]
[1773001073831,1e-08,1957.2,1956.7,0.49440747]
[1773001074035,0.46651816,1957.6,1956.7,0.49540747]
[1773001074236,0.002,1956.9,1956.7,0.49540747]
[1773001074434,0.46651816,1957.6,1956.7,0.49540747]
[1773001074435,0.46651816,1957.8,1957.0,0.49440747]
[1773001075374,0.46651816,1957.8,1956.8,1.77196604]
[1773001077076,0.46651816,1957.6,1956.8,1.77196604]
[1773001077242,0.46651816,1957.6,1956.7,1.27860045]
[1773001079676,0.46651816,1957.4,1956.7,1.27860045]
[1773001079886,0.46651816,1957.8,1956.8,0.49440747]
[1773001080277,0.46651816,1957.6,1956.8,0.49440747]
[1773001080989,0.46651816,1957.8,1956.8,0.49440747]
[1773001081498,0.002,1957.9,1957.1,0.49440747]
[1773001082392,0.46851816,1957.9,1957.1,0.49440747]
[1773001083691,0.46851816,1957.9,1957.3,0.48575299]
[1773001085378,0.002,1957.9,1957.3,0.48575299]
[1773001085581,0.002,1958.3,1957.6,0.47677311]
[1773001085951,0.002,1958.7,1958.0,0.47677311]
[1773001086388,0.002,1958.1,1958.0,0.47677311]
[1773001086553,0.00953886,1958.2,1957.6,0.47677311]
[1773001086754,0.002,1958.7,1957.6,0.47677311]
[1773001087398,1.74569127,1958.7,1957.6,0.47677311]
[1773001087597,0.46731916,1958.5,1957.7,1.75378184]
[1773001087769,0.46731916,1958.5,1957.8,0.47677311]
[1773001087969,1.27835813,1958.7,1957.8,0.47677311]
[1773001088394,1.27836256,1958.7,1957.8,0.47677311]
[1773001088606,0.002,1958.7,1957.8,0.47677311]
[1773001089296,1.74571059,1958.7,1957.8,0.47677311]
[1773001089501,0.46731916,1958.6,1957.8,0.47677311]
[1773001089704,0.002,1958.7,1958.0,0.47677311]
[1773001090274,0.002,1958.7,1958.2,0.47677311]
[1773001092103,0.002,1958.7,1958.3,1.27661747]
[1773001092674,0.46931916,1958.7,1958.2,1.27664788]
[1773001092880,0.46931916,1958.7,1958.1,1.27671832]
[1773001093973,1.74570388,1958.7,1958.1,1.27671832]
[1773001094166,0.46731916,1958.6,1958.1,1.27671832]
[1773001096397,0.46731916,1958.5,1957.7,1.75378184]
[1773001097291,0.46931916,1958.7,1957.8,0.47677311]
[1773001097498,0.002,1958.7,1957.8,0.47677311]
[1773001098313,0.002,1958.5,1957.8,0.47677311]
[1773001098693,0.002,1958.5,1958.0,0.47677311]
[1773001099107,1e-08,1958.7,1958.0,0.47677311]
[1773001100717,1e-08,1958.7,1958.1,1.75352097]
[1773001100919,0.46731917,1958.7,1958.1,1.27674786]
[1773001103218,0.46731917,1958.7,1958.0,5.58376458]
[1773001105193,0.46731916,1958.6,1958.0,1.75358618]
[1773001105393,0.46731916,1958.6,1958.0,1.27681307]
[1773001105610,1e-08,1958.7,1958.1,0.47677311]
[1773001105814,1.27636756,1958.7,1958.1,0.47677311]
[1773001106012,1e-08,1958.7,1958.1,0.47677311]
[1773001106215,1.27636908,1958.7,1958.1,0.47677311]
[1773001106427,1.74368824,1958.7,1958.1,0.47677311]
[1773001107511,1.74368824,1958.7,1958.2,1.27668266]
[1773001107824,0.46731916,1958.6,1958.0,1.27678804]
[1773001109398,0.46731916,1958.6,1958.0,1.75356115]
[1773001109698,0.46731916,1958.6,1958.1,0.47677311]
[1773001110530,0.46731916,1958.6,1958.1,0.47777311]
[1773001110731,0.46731916,1958.5,1958.1,0.001]
[1773001112403,1.74385802,1958.5,1958.1,0.001]
[1773001112920,0.47403834,1958.4,1958.1,0.001]
[1773001116328,1.75059146,1958.4,1958.1,0.001]
[1773001117837,0.47403834,1958.3,1958.1,0.001]
[1773001118328,1.75059146,1958.4,1958.1,0.001]
[1773001119628,1.27655312,1958.4,1958.1,0.001]
[1773001119860,1.27655312,1958.4,1957.8,0.001]
[1773001119861,0.47403834,1958.3,1957.8,0.001]
[1773001120134,0.47403834,1958.3,1957.6,0.49750898]
[1773001120624,0.47403834,1958.3,1957.6,1.77457393]
[1773001121325,0.47403834,1958.1,1957.6,1.77457393]
[1773001122536,0.47403834,1958.1,1957.6,0.49750898]
[1773001122726,0.47403834,1958.1,1957.7,0.001]
[1773001123518,1.75085141,1958.0,1957.7,0.001]
[1773001124634,0.47403834,1957.9,1957.7,0.001]
[1773001124838,1.27681307,1958.0,1957.7,0.001]
[1773001125738,2.53568359,1958.2,1957.7,0.49850898]
[1773001125942,1.75070652,1958.3,1957.7,0.49850898]
[1773001126258,3.01450367,1958.6,1957.7,0.49850898]
[1773001126434,0.002,1958.6,1957.7,0.49850898]
[1773001127518,1.2784272,1958.6,1957.7,0.49850898]
[1773001127837,0.002,1958.6,1957.9,0.49750898]
[1773001129214,0.47603834,1958.6,1957.9,0.49750898]
[1773001130043,1.75249058,1958.6,1958.1,0.49750898]
[1773001130550,0.47403834,1958.5,1958.1,0.49750898]
[1773001133070,0.002,1958.6,1958.3,0.49750898]
[1773001133352,0.002,1958.8,1958.4,0.49750898]
[1773001133646,0.00153886,1959.0,1958.5,0.49750898]
[1773001134930,0.00153886,1959.0,1958.7,0.49750898]
[1773001136850,7.5958025,1959.9,1958.7,0.49750898]
[1773001136851,0.00153886,1961.0,1959.0,0.49750898]
[1773001137025,0.00153886,1960.9,1959.3,0.065536]
[1773001137227,0.00153886,1960.9,1959.6,0.49750898]
[1773001137461,0.00153886,1960.8,1959.8,0.49750898]
[1773001138750,0.00153886,1960.7,1959.8,0.49750898]
[1773001138948,0.00153886,1960.9,1960.0,0.49750898]
[1773001140439,0.00153886,1960.8,1960.0,0.49750898]
[1773001141040,0.00153886,1961.0,1960.2,0.49750898]
[1773001141361,0.00153886,1960.9,1960.2,0.49750898]
[1773001141756,0.00153886,1960.8,1960.2,0.49750898]
[1773001143563,0.00153886,1960.7,1960.4,0.49063824]
[1773001143734,0.00153886,1960.9,1960.4,0.49063824]
[1773001144962,0.00153886,1960.8,1960.4,0.49063824]
[1773001145568,0.00153886,1960.7,1960.0,0.49063824]
[1773001145769,0.02026238,1960.9,1960.0,0.49063824]
[1773001146067,0.00153886,1960.8,1960.0,0.49063824]
[1773001146560,0.00153886,1960.7,1960.0,0.49063824]
[1773001147169,0.00153886,1961.0,1959.8,1.27559428]
[1773001147170,0.02026238,1960.6,1959.8,1.27559428]
[1773001147350,0.01872352,1960.6,1959.8,1.27559428]
[1773001147549,1.2751849,1960.5,1959.8,1.27559428]
[1773001148146,1.2751849,1960.5,1960.1,0.001]
[1773001148348,0.00153886,1960.4,1960.1,0.001]
[1773001148672,0.01872352,1960.4,1960.1,0.001]
[1773001148845,0.01872352,1960.4,1959.4,0.49063824]
[1773001149359,0.01872352,1960.2,1959.8,0.001]
[1773001149556,1.29416865,1960.1,1959.8,0.001]
[1773001149757,1.29416865,1960.1,1959.2,0.49063824]
[1773001149758,0.01872352,1960.0,1959.2,0.49063824]
[1773001149960,0.02026238,1960.0,1959.2,0.49063824]
[1773001150542,0.00153886,1960.0,1959.2,0.49063824]
[1773001151454,2.45244381,1959.9,1959.0,1.7682925]
[1773001151656,1.27564037,1959.8,1959.1,0.49063824]
[1773001153367,0.00153886,1959.7,1959.1,0.49063824]
[1773001153569,0.00153886,1959.7,1959.1,1.76673267]
[1773001153769,0.00153886,1959.7,1959.1,0.49063824]
[1773001153949,0.00153886,1959.6,1959.0,0.00153886]
[1773001154148,0.00153886,1959.6,1959.0,1.76833598]
[1773001154486,0.00153886,1959.6,1959.0,0.4921771]
[1773001154646,0.00153886,1959.6,1959.0,1.76833572]
[1773001154847,0.00153886,1959.6,1959.1,0.49063824]
[1773001155481,0.00153886,1959.5,1959.1,0.49063824]
[1773001155662,1.29436389,1959.8,1959.1,0.49063824]
[1773001155989,0.00153886,1959.7,1959.1,1.76669869]
[1773001156650,0.00153886,1959.6,1959.2,0.49063824]
[1773001156847,1.27511986,1960.6,1959.3,0.48986881]
[1773001158086,1.29538224,1960.6,1959.5,0.48986881]
[1773001158296,0.02026238,1960.5,1959.5,0.48986881]
[1773001158450,1.29536622,1960.7,1959.5,0.48986881]
[1773001159165,0.02026238,1960.6,1959.5,0.48986881]
[1773001160683,0.02026238,1960.4,1959.6,1.76563937]
[1773001161674,0.02026238,1960.4,1959.3,5.10374088]
[1773001161883,0.02026238,1960.4,1959.4,1.76576959]
[1773001162180,0.02026238,1960.4,1959.6,0.001]
[1773001162896,0.02026238,1960.2,1959.6,0.001]
[1773001163801,0.02026238,1960.2,1959.5,0.001]
[1773001163802,0.02026238,1960.1,1959.5,0.001]
[1773001165207,1.2755102,1960.0,1959.5,0.001]
[1773001166609,2.5315102,1960.0,1959.5,0.001]
[1773001167388,2.55077258,1960.0,1959.5,0.001]
[1773001167609,0.01926238,1959.9,1959.5,0.001]
[1773001170519,1.27564037,1959.8,1959.5,0.001]
[1773001173897,1.27564037,1959.8,1959.0,0.49544906]
[1773001173898,0.01926238,1959.7,1959.0,0.49544906]
[1773001175313,1.27577056,1959.6,1959.1,0.4939102]
[1773001176211,1.27577056,1959.6,1959.3,0.001]
[1773001176401,1.27777056,1959.6,1959.3,0.001]
[1773001177919,0.002,1959.6,1959.3,0.001]
[1773001179294,0.002,1959.6,1959.3,0.4949102]
[1773001185027,0.002,1959.6,1959.4,0.4939102]
[1773001185229,0.002,1959.7,1959.4,0.4939102]
[1773001185926,1.27541202,1960.2,1959.4,0.4939102]
[1773001186126,0.02026238,1960.1,1959.4,0.4939102]
[1773001186501,1.28126238,1960.1,1959.4,0.4939102]
[1773001187229,1.2755102,1960.0,1959.5,0.4939102]
[1773001187627,0.02026238,1959.9,1959.3,0.4949102]
[1773001189245,1.27564037,1959.8,1959.3,0.4949102]
[1773001189945,1.27564037,1959.8,1959.3,0.001]
[1773001189946,0.02026238,1959.7,1959.3,0.001]
[1773001190127,0.02026238,1959.7,1959.1,1e-08]
[1773001190731,0.02026238,1959.7,1959.3,0.001]
[1773001191241,1.75366372,1959.6,1959.3,0.001]
[1773001192348,1.27577056,1959.6,1959.3,0.001]
[1773001196334,1.75366372,1959.6,1959.3,0.001]
[1773001196486,0.47789316,1959.5,1959.0,0.49644906]
[1773001197554,0.47789316,1959.5,1959.0,0.00253886]
[1773001198150,1.75379394,1959.4,1959.0,0.00253886]
[1773001200472,0.47789316,1959.3,1959.0,0.00253886]
[1773001201308,0.47789316,1959.3,1958.5,0.4939102]
[1773001201805,0.47789316,1959.1,1958.3,1.77050352]
[1773001202108,0.47789316,1959.1,1958.4,0.4939102]
[1773001202305,1.2761613,1959.0,1958.5,1.7703973]
[1773001202508,2.5551613,1959.0,1958.5,1.7703973]
[1773001203596,1.27612231,1959.1,1958.6,0.45737402]
[1773001203824,1.27608349,1959.2,1958.6,0.45737402]
[1773001205110,1.27608349,1959.2,1958.8,0.45434155]
[1773001205674,0.45818105,1959.6,1959.0,0.45434155]
[1773001205976,1.27577056,1959.6,1959.0,0.45434155]
[1773001206810,1.73582979,1959.8,1959.0,0.45434155]
[1773001207103,1.73582979,1959.8,1959.1,1.27609616]
[1773001207308,1.73582979,1959.8,1959.2,0.45434155]
[1773001209297,0.45818105,1959.7,1959.2,0.45434155]
[1773001211517,1.27577056,1959.6,1959.3,0.45434155]
[1773001214410,1.27764037,1959.8,1959.3,0.45434155]
[1773001214585,2.56264037,1959.8,1959.3,0.45434155]
[1773001215417,3.02082142,1959.8,1959.3,0.45434155]
[1773001217423,1.73582142,1959.8,1959.3,0.45434155]
[1773001217609,3.02182142,1959.8,1959.3,0.45434155]
[1773001218387,0.002,1959.7,1959.3,0.45434155]
[1773001219522,0.002,1959.7,1959.4,0.45434155]
[1773001221729,0.002,1959.7,1959.5,0.45434155]
[1773001225313,0.002,1959.7,1959.1,0.45434155]
[1773001225314,0.46018105,1959.7,1959.1,0.45434155]
[1773001225505,0.46018105,1959.7,1959.2,0.45434155]
[1773001225506,0.04701103,1959.6,1959.2,0.45434155]
[1773001226525,0.04701103,1959.6,1959.3,0.45434155]
[1773001226692,1.32278419,1959.6,1959.3,0.45434155]
[1773001226892,0.04701103,1959.6,1959.3,0.45434155]
[1773001227407,1.3227839,1959.6,1959.3,0.45434155]
[1773001227615,1.78096495,1959.6,1959.1,0.45434155]
[1773001227797,0.45818105,1959.5,1959.1,0.45434155]
[1773001228495,0.45818105,1959.5,1959.1,1.73043443]
[1773001228496,1.73405099,1959.5,1959.1,1.73043443]
[1773001229325,1.73405099,1959.5,1959.1,0.45434155]
[1773001229629,0.45818105,1959.4,1958.9,0.45434155]
[1773001230525,1.2759659,1959.3,1958.9,1.67941437]
[1773001230714,1.78114076,1959.4,1959.1,0.001]
[1773001231096,0.45818105,1959.3,1959.1,0.001]
[1773001232742,1.27603103,1959.2,1959.1,0.001]
[1773001232907,0.4820753,1959.1,1958.8,0.001]
[1773001235037,0.4820753,1959.3,1958.8,0.48236883]
[1773001235240,1.75809418,1959.3,1958.8,0.48236883]
[1773001237857,1.27601888,1959.3,1958.8,0.48236883]
[1773001238063,0.4820753,1959.2,1958.8,0.001]
[1773001238261,0.52908633,1959.2,1958.8,0.001]
[1773001239773,0.04701103,1959.3,1959.1,0.48136883]
[1773001240864,0.04701103,1959.4,1959.1,0.48136883]
[1773001243065,1.80499623,1959.4,1959.1,0.48136883]
[1773001243366,0.4820753,1959.3,1958.9,1.75759229]
[1773001244237,0.4820753,1959.3,1959.0,0.48136883]
[1773001244632,0.4820753,1959.0,1957.8,0.001]
[1773001244833,0.4820753,1959.0,1958.0,0.48290769]
[1773001245038,1.7750753,1958.9,1958.1,0.48136883]
[1773001245242,0.4820753,1958.8,1958.1,0.48136883]
[1773001246155,0.4820753,1958.8,1958.6,0.001]
[1773001247071,1.27635676,1958.7,1958.6,0.001]
[1773001250070,0.4820753,1959.1,1958.6,0.48236883]
[1773001250370,0.04701103,1959.0,1958.6,0.48236883]
[1773001250975,0.04701103,1959.1,1958.6,0.48236883]
[1773001251577,1.2761613,1959.0,1958.6,0.48236883]
[1773001255976,0.04701103,1958.9,1958.6,0.48236883]
[1773001256175,1.32323934,1958.9,1958.6,0.48236883]
[1773001258049,0.002,1958.8,1958.6,0.48236883]
[1773001265792,1.75449641,1958.7,1958.6,0.001]
[1773001266093,0.47813965,1958.7,1958.6,0.001]
[1773001266395,1.3253481,1958.8,1958.6,0.001]
[1773001267299,0.47813965,1958.7,1958.4,0.001]
[1773001267865,0.47813965,1958.5,1958.2,0.001]
[1773001270400,0.47813965,1958.4,1958.0,0.00153886]
[1773001270706,1.3234148,1958.7,1958.0,0.46321027]
[1773001270869,0.04701103,1958.7,1958.0,0.46321027]
[1773001271769,3.05747926,1958.8,1958.0,0.46321027]
[1773001271770,1.80344812,1958.8,1958.5,0.001]
[1773001272099,1.27829744,1958.8,1958.5,0.46267141]
[1773001272474,0.002,1958.7,1958.5,0.46267141]
[1773001274576,0.002,1958.9,1958.6,0.46167141]
[1773001278033,0.002,1958.9,1958.7,0.46167141]
[1773001279605,0.002,1958.9,1958.5,0.46267141]
[1773001279925,0.48013965,1958.9,1958.5,0.46267141]
[1773001280929,0.48013965,1958.9,1958.5,0.001]
[1773001281103,0.47813965,1958.7,1958.2,0.46267141]
[1773001282326,0.47813965,1958.5,1958.2,0.001]
[1773001285931,1.27655228,1958.4,1958.3,0.001]
[1773001292547,0.47813965,1958.4,1958.3,0.001]
[1773001292746,0.47813965,1958.4,1958.2,0.001]
[1773001295040,1.27661747,1958.3,1958.2,0.001]
[1773001298743,1.27861747,1958.3,1958.2,0.001]
[1773001305215,1.04543283,1958.6,1958.3,0.46147835]
[1773001305216,0.002,1958.6,1958.3,0.46147835]
[1773001305422,0.002,1958.6,1958.2,1.32470089]
[1773001305423,1.27823502,1958.9,1958.4,0.46147835]
[1773001308748,1.75687362,1958.9,1958.5,0.46147835]
[1773001308960,0.48064717,1958.8,1958.5,0.46147835]
[1773001311752,0.48064717,1958.8,1958.6,0.001]
[1773001312254,0.002,1958.7,1958.6,0.001]
[1773001314554,0.002,1958.7,1958.6,0.46247835]
[1773001316956,0.002,1958.7,1958.6,0.50952252]
[1773001318932,0.002,1958.7,1958.6,0.46247835]
[1773001320868,0.002,1958.7,1958.6,0.001]
[1773001321032,0.48064717,1958.7,1958.6,0.001]
[1773001322774,0.002,1958.7,1958.6,0.001]
[1773001331872,0.002,1958.7,1958.6,0.48194783]
[1773001334880,0.002,1958.7,1958.6,0.001]
[1773001338185,0.002,1958.7,1958.6,0.48194783]
[1773001339390,0.002,1959.0,1958.8,0.48094783]
[1773001340270,0.002,1959.0,1958.8,1.75722863]
[1773001340890,0.002,1959.0,1958.8,1.75722723]
[1773001341056,0.002,1959.0,1958.8,1.7572367]
[1773001343709,0.47047818,1958.9,1958.6,0.001]
[1773001343862,1.04479451,1959.0,1958.4,0.001]
[1773001343863,0.47047818,1958.7,1958.4,0.001]
[1773001344413,0.47047818,1958.6,1958.4,0.001]
[1773001346291,1.74696528,1958.5,1958.4,0.001]
[1773001347587,0.47047818,1958.5,1958.4,0.001]
[1773001347762,1.74691948,1958.6,1958.4,0.001]
[1773001350067,0.47047818,1958.5,1958.2,0.001]
[1773001350273,0.47047818,1958.5,1958.2,0.48194783]
[1773001351807,1.74701527,1958.5,1958.2,0.48194783]
[1773001354520,0.30977376,1958.2,1958.1,1.76936222]
[1773001355711,0.30977376,1958.2,1958.1,3.04611008]
[1773001356910,0.30977376,1958.2,1958.1,1.76936222]
[1773001358713,0.30977376,1958.2,1958.1,1.316]
[1773001360215,1.73022534,1958.3,1958.1,1.316]
[1773001360722,0.45358862,1958.3,1958.0,0.45590108]
[1773001361583,0.45358862,1958.3,1958.0,0.00253886]
[1773001362510,1.73022171,1958.3,1958.0,0.00253886]
[1773001363015,0.45358862,1958.3,1958.0,0.00253886]
[1773001363216,1.73020711,1958.3,1958.0,0.00253886]
[1773001364127,0.45358862,1958.2,1958.0,0.00253886]
[1773001371232,1.73027668,1958.2,1958.0,0.00253886]
[1773001371533,0.45358862,1958.2,1958.0,0.00253886]
[1773001372424,0.45358862,1958.2,1958.1,0.001]
[1773001372925,0.45558862,1958.2,1958.1,0.001]
[1773001376436,1.73227128,1958.2,1958.1,0.001]
[1773001388345,0.002,1958.2,1958.1,0.47950587]
[1773001388546,1.27856154,1958.4,1958.2,0.47850587]
[1773001392240,1.74131225,1958.4,1958.1,0.47950587]
[1773001396149,1.74131225,1958.4,1958.2,0.001]
[1773001396350,0.002,1958.3,1958.2,0.001]
[1773001405870,0.002,1958.5,1958.3,0.47850587]
[1773001408475,0.002,1958.5,1958.3,0.47950587]
[1773001408778,0.002,1958.4,1958.3,0.47950587]
[1773001416378,0.002,1958.4,1958.3,1.75612334]
[1773001420997,1e-08,1958.6,1958.4,0.47224855]
[1773001421296,0.49157454,1958.6,1958.3,0.001]
[1773001426609,0.49157453,1958.5,1958.3,0.001]
[1773001429714,1.76808182,1958.5,1958.3,0.001]
[1773001430014,0.49157453,1958.4,1958.3,0.001]
[1773001432711,0.49357453,1958.4,1958.3,0.001]
[1773001433414,0.49157453,1958.3,1958.0,0.00253886]
[1773001433713,0.49157453,1958.2,1958.0,0.00253886]
[1773001434402,0.49157453,1958.1,1958.0,0.00253886]
[1773001434782,0.49157453,1958.1,1957.9,0.001]
[1773001434986,0.49157453,1958.1,1957.8,0.001]
[1773001436117,0.49157453,1958.0,1957.8,0.001]
[1773001436412,0.49157453,1958.0,1957.7,0.001]
[1773001436584,1.27687828,1957.9,1957.7,0.001]
[1773001436785,1.76845281,1957.9,1957.7,0.001]
[1773001439210,0.49157453,1957.8,1957.7,0.001]
[1773001439417,0.49157453,1957.8,1957.5,0.001]
[1773001440383,2.32021677,1957.9,1957.1,3.06361835]
[1773001440384,0.49157453,1957.6,1957.1,3.06361835]
[1773001440790,0.49157453,1957.4,1957.1,0.47224855]
[1773001440991,1.76882695,1957.4,1957.1,0.47224855]
[1773001441532,0.49157453,1957.3,1957.0,0.00253886]
[1773001443311,0.45269905,1957.6,1957.0,0.50251635]
[1773001443497,0.45269905,1957.5,1957.0,0.50251635]
[1773001445023,0.45269905,1957.5,1957.2,0.001]
[1773001446129,0.45269905,1957.5,1957.0,0.00253886]
[1773001446130,0.47020228,1957.3,1957.0,0.36220136]
[1773001446424,0.47020228,1957.2,1957.0,0.00253886]
[1773001448304,0.47020228,1957.1,1957.0,0.00253886]
[1773001449141,0.47020228,1957.1,1956.7,0.001]
[1773001449436,0.47020228,1957.1,1956.7,0.3606625]
[1773001450219,0.47020228,1957.1,1956.7,1.63831471]
[1773001450413,1.74760797,1957.1,1956.7,1.63831471]
[1773001450841,1.74760797,1957.1,1956.7,1.63832315]
[1773001451839,0.47020228,1957.0,1956.7,0.3606625]
[1773001452441,0.47020228,1957.0,1956.7,1.63832072]
[1773001454036,0.47020228,1957.0,1956.7,0.3606625]
[1773001455434,0.47020228,1957.0,1956.7,1.63831991]
[1773001455645,0.47020228,1956.9,1956.7,0.001]
[1773001456524,0.47020228,1956.9,1956.8,0.001]
[1773001457728,1.74773306,1956.9,1956.8,0.001]
[1773001458139,1.74773306,1956.9,1956.5,1.2787433]
[1773001458140,0.47020228,1956.8,1956.5,0.001]
[1773001459010,0.47020228,1957.0,1956.6,0.3596625]
[1773001463861,0.47020228,1957.0,1956.6,1.63735409]
[1773001464836,1.27746743,1957.0,1956.6,1.63735409]
[1773001465133,0.47020228,1956.9,1956.6,1.63735409]
[1773001467361,0.47020228,1956.9,1956.6,1.27769159]
[1773001468965,0.47020228,1956.9,1956.7,0.001]
[1773001469366,0.47220228,1956.9,1956.7,0.001]
[1773001470976,0.47220228,1956.9,1955.0,0.00153886]
[1773001471200,0.47220228,1956.9,1952.8,1.327]
[1773001471201,1.48574619,1955.1,1952.8,1.327]
[1773001471343,2.53060461,1954.7,1952.9,1.28014747]
[1773001471685,1.48574619,1954.7,1953.0,1.66010888]
[1773001472286,1.48574619,1954.6,1952.9,1.28014747]
[1773001472447,1.04485842,1954.7,1952.9,1.28014747]
[1773001472448,1.48574619,1954.4,1952.9,1.28014747]
[1773001472650,1.48574619,1954.2,1952.9,1.28014747]
[1773001473037,1.48574619,1954.2,1953.0,0.065536]
[1773001473241,1.48574619,1953.9,1952.9,1.28014747]
[1773001473464,1.48574619,1953.8,1952.9,1.28014747]
[1773001476171,0.74287309,1953.9,1952.9,1.28014747]
[1773001479385,7.67460871,1953.8,1952.9,1.28014747]
[1773001480160,0.74287309,1953.9,1952.9,1.28014747]
[1773001480891,0.73481044,1954.3,1953.0,0.21502099]
[1773001481091,0.4638494,1954.6,1953.1,0.26518954]
[1773001481893,1.27899597,1954.7,1953.1,0.26518954]
[1773001481894,0.4638494,1954.4,1953.1,0.26518954]
[1773001482073,0.4638494,1954.4,1953.3,0.26518954]
[1773001482274,0.4638494,1954.2,1953.3,0.26518954]
[1773001482665,0.002,1953.9,1953.3,0.26518954]
[1773001483966,0.4658494,1953.9,1953.3,0.26518954]
[1773001485498,0.4658494,1953.9,1953.4,1.54300934]
[1773001487997,0.4658494,1953.9,1953.5,0.49407363]
[1773001488369,0.4658494,1953.9,1953.2,0.49407363]
[1773001488570,0.4638494,1953.8,1953.2,0.49407363]
[1773001489403,0.4658494,1953.9,1953.2,0.49407363]
[1773001490906,0.4658494,1953.9,1953.4,0.49407363]
[1773001492472,0.002,1954.1,1953.3,1.27988532]
[1773001492720,0.4638494,1954.8,1953.5,0.49407363]
[1773001493005,0.4638494,1954.6,1953.7,0.49407363]
[1773001494478,0.4638494,1954.8,1953.7,0.49407363]
[1773001494678,0.002,1954.6,1953.7,0.49407363]